Cogmind - Beta 15 *** ADVENTURER MODE // 2025.06.16 @ 11:34:46 Player: darlorth Result: Destroyed by D-53 Grenadier with Mini Grenade Launcher Performance ------------- Evolutions (0) 0 Regions Visited (2) 400 Robots Destroyed (22) 110 Value Destroyed (497) 497 Prototype IDs (0) 0 Alien Tech Used (0) 0 Bonus (0) 0 TOTAL SCORE: 1007 Bonus ------- None Cogmind --------- Core Integrity 0/250 Matter 294/300 Energy 123/125 System Corruption 2% Temperature Cool (1) Movement Walking (400) Ox4 Location -10/Mines Parts ------- > --- POWER (1) -------- Light Ion Engine > --- PROPULSION (2) --- Aluminum Leg > --- UTILITY (2) ------ High-capacity Storage Unit Hardened Light Armor Plating > --- WEAPON (2) ------- Light Assault Rifle > --- INVENTORY (20) --- Ion Engine Light Ion Engine Light Treads Wheel Wheel Wheel Compact Wheel Compact Wheel Small Matter Pod (50) Medium Matter Pod (100) Medium Matter Pod (100) Visual Processing Unit Tractor Beam Assault Rifle Mace Peak State ------------ > --- POWER ------------ Light Nuclear Core > --- PROPULSION ------- Light Treads Wheel > --- UTILITY ---------- High-capacity Storage Unit Hardened Light Armor Plating > --- WEAPON ----------- Light Assault Rifle Light Assault Rifle > --- INVENTORY -------- Ion Engine Light Ion Engine Light Ion Engine Light Treads Aluminum Leg Aluminum Leg Wheel Wheel Compact Wheel Compact Wheel Small Matter Pod Structural Scanner Visual Processing Unit Tractor Beam Particle Gun Assault Rifle Mace [Rating: 12] Favorites ----------- Power Light Nuclear Core Engine Light Ion Engine Power Core Light Nuclear Core Propulsion Light Treads Treads Light Treads Leg Aluminum Leg Wheel Wheel Utility High-capacity Storage Unit Storage High-capacity Storage Unit Protection Hardened Light Armor Plating Weapon Light Assault Rifle Energy Gun Particle Gun Ballistic Gun Light Assault Rifle Build | -11 -10 -10 ------- Run | Yrd Mat Min Slots Evolved . | . . . Power . | . . . Propulsion . | . . . Utility . | . . . Weapon . | . . . Parts Attached 21 | 6 11 4 Power 4 | 1 3 . Engine 3 | 1 2 . Core 1 | . 1 . Reactor . | . . . Propulsion 8 | 2 3 3 Treads 2 | 2 . . Leg 2 | . . 2 Wheel 4 | . 3 1 Hover . | . . . Flight . | . . . Utility 5 | 1 3 1 Device . | . . . Storage 2 | 1 1 . Processor . | . . . Hackware . | . . . Protection 3 | . 2 1 Artifact . | . . . Weapon 4 | 2 2 . Energy Gun 1 | . 1 . Energy Cannon . | . . . Ballistic Gun 3 | 2 1 . Ballistic Cannon . | . . . Launcher . | . . . Special Weapon . | . . . Impact Weapon . | . . . Slashing Weapon . | . . . Piercing Weapon . | . . . Special Melee Weapon . | . . . Unidentified Prototypes . | . . . Parts Lost 9 | . 4 5 Power 2 | . 2 . Propulsion 4 | . 2 2 Utility 1 | . . 1 Weapon 2 | . . 2 Highest Loss Streak 5 | . 2 5 To Critical Strikes . | . . . Average Backups 14 | 2 13 17 Power 2 | . 2 2 Propulsion 5 | 1 5 6 Utility 3 | . 3 5 Weapon 2 | . 2 2 Tool/Special . | . . . Unused Backups 12 | . 1 11 Power 1 | . . 1 Propulsion 3 | . . 3 Utility 6 | . 1 5 Weapon 2 | . . 2 Tool/Special . | . . . Average Slot Usage (%) 95 | . 95 98 Engine 5 | . 3 14 Core 8 | . 10 . Treads 12 | . 13 6 Wheel 15 | . 14 18 Storage 14 | . 14 14 Protection 10 | . 9 14 Energy Gun 3 | . 1 12 Ballistic Gun 24 | . 26 14 Peak Build Rating 12 | 6 12 11 Average Rating 9 | 4 10 10 On Entrance 5 | . 6 11 Naked Turns . | . . . Heaviest Build 52 | 10 52 52 Greatest Support 40 | 40 40 26 Greatest Overweight (x) 5 | 2 5 4 Average Overweight (x) 2 | . 2 2 Largest Inventory Capacity 20 | 8 20 20 Average Capacity 17 | 7 17 20 Most Carried 20 | 6 20 18 Average Carried 14 | 2 13 17 Final Capacity 20 | 8 20 20 Final Carried 18 | 6 18 15 Class Distribution -------------------- 92% | Mutant 7% | Scavenger-Mutant Dominant Class ---------------- Mutant | -10/Materials Mutant | -10/Mines Resources | -11 -10 -10 ----------- Run | Yrd Mat Min Matter Collected 842 | 192 605 45 Remotely . | . . . Salvage Created 816 | . 771 45 Parts 52 | . 52 . Haulers Intercepted 1 | . 1 . Recyclers Shooed 1 | . 1 . Parts Field Recycled . | . . . Retrieved Matter . | . . . Parts Self-Destructed . | . . . Prevented . | . . . Kills | -11 -10 -10 ------- Run | Yrd Mat Min Combat Hostiles Destroyed 17 | . 14 3 Guns 17 | . 14 3 Classes Destroyed 8 | . 7 1 Worker 1 | . 1 . Builder 2 | . 2 . Hauler 1 | . 1 . Recycler 1 | . 1 . Watcher 3 | . 3 . Swarmer 3 | . 3 . Grunt 11 | . 11 . Assembled 3 | . . 3 Best Kill Streak 4 | . 4 1 Combat Bots Only 3 | . 3 1 Max Kills in Single Turn 1 | . 1 1 Gunslinging . | . . . Exploded . | . . . Melee . | . . . Uniques/NPCs Destroyed . | . . . Combat | -11 -10 -10 -------- Run | Yrd Mat Min Hostile Shots Fired 184 | . 133 51 Missed 52 | . 41 11 Hits 132 | . 92 40 Melee 6 | . . 6 Projectile 126 | . 92 34 AOE 12 | . . 12 Critical Strikes 1 | . 1 . Damage Taken 1564 | . 816 748 Core 266 | . 177 89 Absorbed by Shields . | . . . Ignored by Resistances 471 | . 256 215 Core Remaining (%) 100 | 100 . . Volleys Fired 110 | . 95 15 Largest 2 | . 2 2 Hottest 85 | . 85 85 Shots Fired 207 | . 179 28 Gun 207 | . 179 28 Cannon . | . . . Launcher . | . . . Special . | . . . Kinetic 194 | . 174 20 Thermal 13 | . 5 8 Explosive . | . . . Electromagnetic . | . . . Robot Hit Streak 16 | . 13 16 Robot Miss Streak 5 | . 5 2 Penetration Max . | . . . Secondary Targets 4 | . 4 . Max Gunslinging Chain 1 | . 1 . Shots Hit Robots 148 | . 126 22 Core Hits 55 | . 48 7 Critical Kills . | . . . Critical Parts Destroyed 1 | . . 1 Critical Strikes 1 | . . 1 Destroy 1 | . . 1 Melee Attacks . | . . . Impact . | . . . Slashing . | . . . Piercing . | . . . Sneak Attacks . | . . . Combat Hostiles . | . . . Follow-up Attacks . | . . . Damage Inflicted 1224 | . 998 226 Guns 1224 | . 998 226 Cannons . | . . . Explosions . | . . . Melee . | . . . Ramming . | . . . Kinetic 1060 | . 926 134 Thermal 164 | . 72 92 Explosive . | . . . Electromagnetic . | . . . Impact . | . . . Slashing . | . . . Piercing . | . . . Highest Corruption 2 | . . 2 Average Corruption 2 | . . 2 Corruption Purged . | . . . Corruption Blocked . | . . . Effects 1 | . . 1 Energy Discharges 1 | . . 1 Overload Shots . | . . . Overflow Damage . | . . . Projectiles . | . . . Explosions . | . . . Melee . | . . . Knockbacks . | . . . Impact . | . . . Kinetic . | . . . Secondary . | . . . Self-Inflicted Damage . | . . . Shots . | . . . Rammed . | . . . Targets Rammed . | . . . Kicked . | . . . Crushed . | . . . Highest Temperature 227 | . 227 186 Average Temperature 55 | . 45 99 Received Heat Transfer 582 | . 582 . Effects 1 | . 1 . Interference 1 | . 1 . Siege Activations . | . . . Martial Activations . | . . . Shielding Activations . | . . . Robots Disrupted . | . . . Combat Hostiles . | . . . Robots Corrupted . | . . . Combat Hostiles . | . . . Parts Fried . | . . . Impact Corruptions . | . . . Robots Melted . | . . . Combat Hostiles . | . . . Parts Melted . | . . . Heat Transferred 407 | . 185 222 Parts Sabotaged . | . . . Parts Stolen . | . . . Parts Stripped . | . . . Power Chain Reactions . | . . . Alert | -11 -10 -10 ------- Run | Yrd Mat Min Maximum Alert Level . | . . . Low Security (%) 100 | 100 100 100 Level 1 . | . . . Level 2 . | . . . Level 3 . | . . . Level 4 . | . . . Level 5 . | . . . High Security . | . . . Max Security . | . . . Peak Influence 67 | . 67 . Initial . | . . . Average 9 | . 12 . Influence Increases 418 | . 418 . Destroy 0b10 Robot/C 280 | . 280 . Destroy 0b10 Robot/NC 40 | . 40 . Destroy Leader 68 | . 68 . Lose Combat Pursuer 30 | . 30 . Influence Decreases 418 | . 418 . Time Decay 378 | . 378 . Lost Part 40 | . 40 . Squads Dispatched 4 | . 4 . Investigation 4 | . 4 . Extermination . | . . . Reinforcement . | . . . Assault . | . . . Garrison . | . . . Intercept . | . . . Searches Triggered . | . . . Construction Impeded . | . . . Haulers Reinforced . | . . . Active Scanning Responses . | . . . Cargo Convoy Interrupts . | . . . Stealth | -11 -10 -10 --------- Run | Yrd Mat Min Distress Signals 1 | . . 1 Communications Jammed . | . . . Distress Signals . | . . . Times Spotted 34 | . 23 11 Peak Tracking Total 5 | . 3 5 Tactical Retreats 2 | . 1 1 Traps | -11 -10 -10 ------- Run | Yrd Mat Min Traps Triggered 2 | . 2 . Indirectly . | . . . Trap Hack Attempts . | . . . Triggered . | . . . Disarmed . | . . . Reprogrammed . | . . . Reused . | . . . Traps Extracted . | . . . Installed . | . . . Triggered . | . . . Machines | -11 -10 -10 ---------- Run | Yrd Mat Min Machines Disabled . | . . . Max in Single Turn . | . . . Machines Repaired . | . . . Machines Dismantled . | . . . Machines Sabotaged . | . . . Overloaded Fab Kills . | . . . Hacking | -11 -10 -10 --------- Run | Yrd Mat Min Machines Accessed 3 | . 3 . Terminals 3 | . 3 . Fabricators . | . . . Repair Stations . | . . . Recycling Units . | . . . Scanalyzers . | . . . Garrison Access . | . . . Total Hacks 6 | . 6 . Successful 2 | . 2 . Failed 4 | . 4 . Catastrophic 1 | . 1 . Database Lockouts . | . . . Manual 6 | . 6 . Terminals 6 | . 6 . Fabricators . | . . . Repair Stations . | . . . Recycling Units . | . . . Scanalyzers . | . . . Garrison Access . | . . . Terminal Hacks 2 | . 2 . Branch Access Points 1 | . 1 . Recall Investigation 1 | . 1 . Fabricator Hacks . | . . . Repair Station Hacks . | . . . Recycling Unit Hacks . | . . . Scanalyzer . | . . . Garrison Access Hacks . | . . . Unauthorized Hacks . | . . . Terminals . | . . . Fabricators . | . . . Repair Stations . | . . . Recycling Units . | . . . Scanalyzers . | . . . Garrison Access . | . . . Data Cores Recovered . | . . . Used . | . . . Hacking Detections 3 | . 3 . Full Trace Events . | . . . Feedback Events . | . . . Feedback Blocked . | . . . Robot Schematics Acquired . | . . . Robots Built . | . . . Authchips . | . . . Time . | . . . Total Robot Build Rating . | . . . Part Schematics Acquired . | . . . Parts Built . | . . . Authchips . | . . . Time . | . . . Total Part Build Rating . | . . . Parts Repaired . | . . . Time . | . . . Parts Recycled . | . . . Recycled Matter . | . . . Retrieved Matter . | . . . Retrieved Components . | . . . Parts Scanalyzed . | . . . Part Schematics Acquired . | . . . Parts Damaged . | . . . Bothacking | -11 -10 -10 ------------ Run | Yrd Mat Min Used RIF Installer . | . . . Robots Hacked . | . . . Non-combat . | . . . Combat . | . . . Robot Hacks Applied . | . . . Relay Couplers Released . | . . . Fabnet Peak Effective % . | . . . Robots Rewired . | . . . Allies Hacked . | . . . Hacks Repelled . | . . . Allies | -11 -10 -10 -------- Run | Yrd Mat Min Total Allies . | . . . Largest Group . | . . . Highest-Rated Group . | . . . Highest-Rated Ally . | . . . Total Orders . | . . . Ally Attacks . | . . . Total Damage . | . . . Kills . | . . . Allies Corrupted . | . . . Allies Melted . | . . . Intel | -11 -10 -10 ------- Run | Yrd Mat Min Active Infowar (turns) . | . . . Robot Analysis Total . | . . . Derelict Logs Recovered 1 | . . 1 Drone Launches . | . . . Drone Recoveries . | . . . Exploration | -11 -10 -10 ------------- Run | Yrd Mat Min Turns Passed 2195 | 98 1663 434 Spaces Moved 1238 | 65 926 247 Core 28 | 28 . . Treads 158 | 37 121 . Legs 15 | . . 15 Wheels 1037 | . 805 232 Hover . | . . . Flight . | . . . Fastest Speed 50 | 50 90 105 Average Speed 140 | 124 142 139 Slowest Speed 400 | 160 320 400 Overloaded Moves . | . . . Propulsion Burnouts . | . . . Robots Hopped . | . . . Potential Cave-ins . | . . . Cave-ins Triggered . | . . . Exploration Rate (%) 40 | 4 68 48 Regions Visited 2 Branch Regions 1 Pre-discovered Areas . | . . . Known Exits Taken 1 | . 1 . Unknown Exits Taken 1 | 1 . . Scrap Searched 1 | . . 1 Spaces Dug . | . . . Terrain Destroyed . | . . . Melee . | . . . Projectile . | . . . AOE . | . . . Terrain Rammed . | . . . Walls Destroyed . | . . . Machines Disabled . | . . . Actions | -11 -10 -10 --------- Run | Yrd Mat Min Total 1526 | 82 1128 316 Wait 122 | . 73 49 Move 1236 | 64 925 247 Hop . | . . . Pick Up 30 | 12 18 . Fast Attach 1 | . 1 . Attach 14 | 6 5 3 Detach . | . . . Swap 9 | . 7 2 Drop 4 | . 4 . Fire 110 | . 95 15 Melee . | . . . Ram . | . . . Kick . | . . . Crush . | . . . Escape Stasis . | . . . Rewire . | . . . Trap . | . . . Miscellaneous . | . . . Route ------- -11/Scrapyard -10/Materials (discovered 5 exits: [*Mat x2] / *Min x2 / [*Sub]) -10/Mines (discovered 1 exit: [*Mat]) History --------- Turn | Location | Event 4 | -11/Scrapyard | Discovered new exit (range 14) 99 | -11/Scrapyard | Entered Materials 312 | -10/Materials | Discovered new exit (range 15) 313 | -10/Materials | Build established: Mutant 387 | -10/Materials | Discovered new exit (range 10) 483 | -10/Materials | Discovered new exit (range 5) 937 | -10/Materials | Discovered new exit (range 16) 1299 | -10/Materials | Derelicts attacked the area 1447 | -10/Materials | Core integrity fell below 50% 1693 | -10/Materials | Discovered new exit (range 10) 1720 | -10/Materials | Identified exit to Mines 1762 | -10/Materials | Entered Mines 1884 | -10/Mines | Discovered new exit (range 8) 1943 | -10/Mines | Assembled infested the area 1976 | -10/Mines | Core integrity fell below 20% 1988 | -10/Mines | Learned Materials stockpile data 2177 | -10/Mines | Received a Rocket Launcher from a helpful Derelict 2196 | -10/Mines | Destroyed by D-53 Grenadier with Mini Grenade Launcher Last Messages --------------- 02173_ C9-Y83(g): "They are crazy." 02173_ The unstable cave ceiling collapses. 02174_ C9-Y83(g): "Everyone knows a good old rocket launcher goes a long way." 02175_ C9-Y83(g): "Need to get rid of a swarm? Done. Need a big hole in the wall? Done." 02175_ The unstable cave ceiling collapses. 02175_ as-15896 destroyed. 02175_ as-02176 destroyed. 02176_ C9-Y83(g): "Need a small hole in the wall? Leave that to the mining laser wimps, I say!" 02176_ The unstable cave ceiling collapses. 02177_ C9-Y83(g): "Would you like a rocket launcher? I know I would if I were you, so I'm going to lend you mine." 02177_ C9-Y83(g) slips back into the shadows. 02184_ The unstable cave ceiling collapses. 02186_ Aluminum Leg destroyed. 02187_ The unstable cave ceiling collapses. Map ----- +----------------------------------------------------+ | ???????????????## #????????# #????????????? | | ????????????????## ########## #????????????? | | ????????????????## #????????????? | | ??????????????### ###### #####????????????? | | ?????????????## ##????# ##???????????????? | | ????????????## ##????## ##??????????????? | | ????????????# ######## #??????????????? | | ????????????# ## #?# #??????????????? | | ????????????# ### #?# ### ######?###??????? | | ????????????## #?# ### #?# ### ## ###????? | | ?????????????####?# #?## #? ##???? | | ??????????????????# ####### ## #??? | | ????????????????### #### # ???? | | ???????????????## % ???? | | ??????????????## ???? | | ??????????????# * ## [??? | | ????????????? =% ### %??? | | ????????????? #### < # = ? | | ????????????### ### # d % % ? | | ??????????????## ## % !!!! ? | | ???????????????## # # ==%|%= ? | | ????????????????## *### ?? | | ?????????????????## #????? | | ?????????????????## # #????? | | ?????????????????# #### ##????? | | ?????????????????# @ # ##???# #?????? | | ?????????????????# k ##?????# ##?????? | | ?????????????????# ##???????# ##??????? | | ?????????????????## ###?????????##???????? | | ??????????????????# ????????????????????? | | ??????????????????## #???????????????????? | | ???????????????????# ### ???????????????????? | | ???????????????????# ??#### ??????????????????? | | ???????????????????#???????#####?????????????????? | | ?????????????????????????????????????????????????? | | ?????????????????????????????????????????????????? | | ?????????????????????????????????????????????????? | | ?????????????????????????????????????????????????? | | ?????????????????????????????????????????????????? | | ?????????????????????????????????????????????????? | | ?????????????????????????????????????????????????? | | ?????????????????????????????????????????????????? | | ?????????????????????????????????????????????????? | | ?????????????????????????????????????????????????? | | ?????????????????????????????????????????????????? | | ?????????????????????????????????????????????????? | | ?????????????????????????????????????????????????? | | ?????????????????????????????????????????????????? | | ?????????????????????????????????????????????????? | | ?????????????????????????????????????????????????? | +----------------------------------------------------+ Best States ------------- Heat Dissipation 25 Energy Generation 14 Energy Capacity 160 Matter Stores 300 Matter Capacity 300 Sight Range 16 Terrain Scan Density 10 Armor Coverage 150 Resistance: KI 20 Resistance: TH 20 Resistance: EX 20 Resistance: EM 20 Resistance: I 20 Resistance: S 20 Resistance: P 20 Evasion (%) 50 Recoil Reduction 2 Offensive Hacking 10 Item Schematics ----------------- None Robot Schematics ------------------ None Fabricated ------------ Nothing Repaired ---------- Nothing Alien Tech Used ----------------- None Achievements -------------- None Challenges ------------ None Game ------ Seed VortexAbsorptionSword Manual? 0 Play Time 00:17:22 Cumulative 294.6 hours Start 2025.06.16 @ 02:28:45 End 2025.06.16 @ 11:34:46 Sessions 3 Manual Loads 0 Difficulty Adventurer Special Mode None Game No. 313 Rogue 121 Adventurer 82 Explorer 110 Win Type - Total 22 Types 20/0/2/0/0/0/0/0/0/0 Lore% 27 Gallery% 62 Achievement% 61 Wizard Run 0 Options --------- Layout 1 ASCII 0 Keyboard 0 Movement Mouse Keybinds 0 Fullscreen 1 Font 24/Smallcaps Map View 50x35 Zoom Use 0% Tactical HUD 1 Map Filters NONE Filters NONE Steam 1 RUN: c04efc82-4994-482b-b36d-944f8c992ec7